Cogmind - Beta 13 @@@ ROGUE MODE // 2024.05.08 @ 03:47:06 Player: Exceptionally Mediocre Result: Destroyed by D-53 Grenadier with Mini Grenade Launcher Performance ------------- Evolutions (0) 0 Regions Visited (2) 400 Robots Destroyed (18) 90 Value Destroyed (344) 344 Prototype IDs (0) 0 Alien Tech Used (0) 0 Bonus (0) 0 TOTAL SCORE: 834 Bonus ------- None Cogmind --------- Core Integrity 0/250 Matter 281/300 Energy 100/100 System Corruption 0% Temperature Cool (22) Movement Treading (320) Ox2 Location -10/Mines Parts ------- > --- POWER (1) -------- (None) > --- PROPULSION (2) --- Light Treads > --- UTILITY (2) ------ High-capacity Storage Unit Core Shielding > --- WEAPON (2) ------- Medium Laser > --- INVENTORY (20) --- Ion Engine Light Ion Engine Light Nuclear Core Large Storage Unit Structural Scanner Weapon Shielding Mining Claw Peak State ------------ > --- POWER ------------ Light Nuclear Core > --- PROPULSION ------- Light Treads Light Treads > --- UTILITY ---------- High-capacity Storage Unit Structural Scanner > --- WEAPON ----------- Medium Laser Light Cannon > --- INVENTORY -------- Ion Engine Light Ion Engine Light Nuclear Core Light Treads Light Treads Large Storage Unit Structural Scanner Core Shielding Propulsion Shielding Weapon Shielding Mining Claw [Rating: 10] Favorites ----------- Power Ion Engine Engine Ion Engine Power Core Light Nuclear Core Propulsion Light Treads Treads Light Treads Utility Structural Scanner Device Structural Scanner Storage High-capacity Storage Unit Protection Propulsion Shielding Weapon Assault Rifle Energy Gun Medium Laser Ballistic Gun Assault Rifle Ballistic Cannon Light Cannon Build | -11 -10 -10 ------- Run | Yrd Mat Min Slots Evolved . | . . . Power . | . . . Propulsion . | . . . Utility . | . . . Weapon . | . . . Parts Attached 26 | 6 10 10 Power 3 | 1 1 1 Engine 2 | 1 1 . Core 1 | . . 1 Reactor . | . . . Propulsion 11 | 2 4 5 Treads 11 | 2 4 5 Leg . | . . . Wheel . | . . . Hover . | . . . Flight . | . . . Utility 7 | 1 4 2 Device 2 | . 2 . Storage 3 | 1 2 . Processor . | . . . Hackware . | . . . Protection 2 | . . 2 Artifact . | . . . Weapon 5 | 2 1 2 Energy Gun 1 | . . 1 Energy Cannon . | . . . Ballistic Gun 3 | 2 1 . Ballistic Cannon 1 | . . 1 Launcher . | . . . Special Weapon . | . . . Impact Weapon . | . . . Slashing Weapon . | . . . Piercing Weapon . | . . . Special Melee Weapon . | . . . Unidentified Prototypes . | . . . Parts Lost 13 | . 1 12 Power 2 | . . 2 Propulsion 5 | . . 5 Utility 2 | . . 2 Weapon 4 | . 1 3 Highest Loss Streak 7 | . 1 7 To Critical Strikes . | . . . Average Slot Usage (%) 92 | . 90 98 Engine 13 | . 14 11 Treads 27 | . 27 27 Device 7 | . 5 13 Storage 14 | . 14 14 Ballistic Gun 26 | . 28 22 Naked Turns . | . . . Heaviest Build 51 | 14 50 51 Greatest Support 40 | 40 40 40 Greatest Overweight (x) 2 | 2 1 2 Average Overweight (x) . | . . 1 Largest Inventory Capacity 20 | 8 20 20 Average Capacity 15 | 7 13 20 Most Carried 15 | 3 15 15 Average Carried 10 | 1 9 14 Final Capacity 20 | 8 20 20 Final Carried 15 | 3 15 7 Class Distribution -------------------- 97% | Mutant Dominant Class ---------------- Mutant | -10/Materials Mutant | -10/Mines Resources | -11 -10 -10 ----------- Run | Yrd Mat Min Matter Collected 910 | 255 346 309 Remotely . | . . . Salvage Created 830 | 94 492 244 Parts 50 | 5 38 7 Haulers Intercepted 2 | . 2 . Recyclers Shooed 3 | . 3 . Parts Field Recycled . | . . . Retrieved Matter . | . . . Parts Self-Destructed . | . . . Prevented . | . . . Kills | -11 -10 -10 ------- Run | Yrd Mat Min Combat Hostiles Destroyed 16 | . 6 10 Guns 14 | . 6 8 Cannons 2 | . . 2 Classes Destroyed 8 | 2 5 1 Builder 2 | . 2 . Tunneler 1 | 1 . . Hauler 2 | . 2 . Recycler 3 | 1 1 1 Watcher 2 | . 2 . Swarmer 2 | . 2 . Grunt 6 | . 4 2 Assembled 8 | . . 8 Best Kill Streak 3 | 2 3 3 Combat Bots Only 3 | . 3 3 Max Kills in Single Turn 1 | 1 1 1 Gunslinging . | . . . Exploded . | . . . Melee . | . . . Uniques/NPCs Destroyed . | . . . Combat | -11 -10 -10 -------- Run | Yrd Mat Min Hostile Shots Fired 135 | . 71 64 Missed 32 | . 22 10 Damage Taken 1642 | . 523 1119 Core 262 | . 72 190 Absorbed by Shields . | . . . Redirected to Shielding 56 | . . 56 Core Remaining (%) 100 | 100 . . Volleys Fired 98 | 4 55 39 Largest 2 | 2 2 2 Hottest 85 | 40 40 85 Shots Fired 191 | 8 109 74 Gun 177 | 8 109 60 Cannon 14 | . . 14 Launcher . | . . . Special . | . . . Kinetic 172 | 8 109 55 Thermal 19 | . . 19 Explosive . | . . . Electromagnetic . | . . . Robot Hit Streak 8 | 3 7 8 Robot Miss Streak 5 | 1 4 5 Penetration Max . | . . . Secondary Targets 3 | . 1 2 Max Gunslinging Chain 1 | . 1 1 Shots Hit Robots 110 | 5 61 44 Core Hits 49 | 3 22 24 Critical Kills . | . . . Critical Parts Destroyed 1 | . 1 . Critical Strikes 1 | . 1 . Destroy 1 | . 1 . Melee Attacks . | . . . Impact . | . . . Slashing . | . . . Piercing . | . . . Sneak Attacks . | . . . Combat Hostiles . | . . . Follow-up Attacks . | . . . Damage Inflicted 1441 | 56 775 610 Guns 1296 | 56 770 470 Cannons 140 | . . 140 Explosions . | . . . Melee . | . . . Ramming 5 | . 5 . Kinetic 1301 | 56 770 475 Thermal 135 | . . 135 Explosive . | . . . Electromagnetic . | . . . Impact . | . . . Slashing . | . . . Piercing . | . . . Highest Corruption . | . . . Average Corruption . | . . . Corruption Purged . | . . . Corruption Blocked . | . . . Overload Shots . | . . . Overflow Damage . | . . . Projectiles . | . . . Explosions . | . . . Melee . | . . . Knockbacks 2 | . . 2 Impact . | . . . Kinetic 2 | . . 2 Secondary . | . . . Self-Inflicted Damage . | . . . Shots . | . . . Rammed 1 | . 1 . Targets Rammed 1 | . 1 . Kicked . | . . . Crushed . | . . . Highest Temperature 212 | . 23 212 Average Temperature 50 | . 7 61 Received Heat Transfer 452 | . 213 239 Siege Activations . | . . . Robots Corrupted . | . . . Combat Hostiles . | . . . Parts Fried . | . . . Impact Corruptions . | . . . Robots Melted . | . . . Combat Hostiles . | . . . Parts Melted . | . . . Heat Transferred 407 | . . 407 Parts Sabotaged . | . . . Parts Stolen . | . . . Parts Stripped . | . . . Power Chain Reactions . | . . . Alert | -11 -10 -10 ------- Run | Yrd Mat Min Peak Influence 148 | 10 148 78 Initial 33 | . 6 33 Average 45 | 3 50 44 Maximum Alert Level . | . . . Low Security (%) 100 | 100 100 100 Level 1 . | . . . Level 2 . | . . . Level 3 . | . . . Level 4 . | . . . Level 5 . | . . . High Security . | . . . Max Security . | . . . Squads Dispatched . | . . . Investigation . | . . . Extermination . | . . . Reinforcement . | . . . Assault . | . . . Garrison . | . . . Intercept . | . . . Searches Triggered . | . . . Construction Impeded . | . . . Haulers Reinforced . | . . . Active Scanning Responses . | . . . Cargo Convoy Interrupts . | . . . Stealth | -11 -10 -10 --------- Run | Yrd Mat Min Distress Signals . | . . . Communications Jammed . | . . . Distress Signals . | . . . Times Spotted 27 | . 14 13 Peak Tracking Total 4 | . 4 3 Tactical Retreats 2 | . 2 . Traps | -11 -10 -10 ------- Run | Yrd Mat Min Traps Triggered 2 | . 2 . Indirectly . | . . . Trap Hack Attempts . | . . . Triggered . | . . . Disarmed . | . . . Reprogrammed . | . . . Reused . | . . . Traps Extracted . | . . . Installed . | . . . Triggered . | . . . Machines | -11 -10 -10 ---------- Run | Yrd Mat Min Machines Disabled 1 | . 1 . Max in Single Turn 1 | . 1 . Machines Repaired . | . . . Machines Dismantled . | . . . Machines Sabotaged . | . . . Overloaded Fab Kills . | . . . Hacking | -11 -10 -10 --------- Run | Yrd Mat Min Machines Accessed 3 | . 3 . Terminals 2 | . 2 . Fabricators . | . . . Repair Stations . | . . . Recycling Units 1 | . 1 . Scanalyzers . | . . . Garrison Access . | . . . Total Hacks 4 | . 4 . Successful 3 | . 3 . Failed 1 | . 1 . Catastrophic . | . . . Database Lockouts . | . . . Manual 3 | . 3 . Terminals 3 | . 3 . Fabricators . | . . . Repair Stations . | . . . Recycling Units 1 | . 1 . Scanalyzers . | . . . Garrison Access . | . . . Terminal Hacks . | . . . Fabricator Hacks . | . . . Repair Station Hacks . | . . . Recycling Unit Hacks 1 | . 1 . Retrieve Components 1 | . 1 . Scanalyzer . | . . . Garrison Access Hacks . | . . . Unauthorized Hacks 2 | . 2 . Terminals 2 | . 2 . Botnet 2 | . 2 . Fabricators . | . . . Repair Stations . | . . . Recycling Units . | . . . Scanalyzers . | . . . Garrison Access . | . . . Data Cores Recovered . | . . . Used . | . . . Hacking Detections 1 | . 1 . Full Trace Events . | . . . Feedback Events . | . . . Feedback Blocked . | . . . Robot Schematics Acquired . | . . . Robots Built . | . . . Authchips . | . . . Time . | . . . Total Robot Build Rating . | . . . Part Schematics Acquired . | . . . Parts Built . | . . . Authchips . | . . . Time . | . . . Total Part Build Rating . | . . . Parts Repaired . | . . . Time . | . . . Parts Recycled . | . . . Recycled Matter . | . . . Retrieved Matter . | . . . Retrieved Components 4 | . 4 . Parts Scanalyzed . | . . . Part Schematics Acquired . | . . . Parts Damaged . | . . . Bothacking | -11 -10 -10 ------------ Run | Yrd Mat Min Used RIF Installer . | . . . Robots Hacked . | . . . Non-combat . | . . . Combat . | . . . Robot Hacks Applied . | . . . Relay Couplers Released . | . . . Fabnet Peak Effective % . | . . . Robots Rewired . | . . . Allies Hacked . | . . . Hacks Repelled . | . . . Allies | -11 -10 -10 -------- Run | Yrd Mat Min Total Allies . | . . . Largest Group . | . . . Highest-Rated Group . | . . . Highest-Rated Ally . | . . . Total Orders . | . . . Ally Attacks . | . . . Total Damage . | . . . Kills . | . . . Allies Corrupted . | . . . Allies Melted 1 | . . 1 Intel | -11 -10 -10 ------- Run | Yrd Mat Min Robot Analysis Total . | . . . Derelict Logs Recovered 2 | . . 2 Drone Launches . | . . . Drone Recoveries . | . . . Exploration | -11 -10 -10 ------------- Run | Yrd Mat Min Turns Passed 1704 | 103 1062 539 Spaces Moved 712 | 52 488 172 Core 4 | 4 . . Treads 708 | 48 488 172 Legs . | . . . Wheels . | . . . Hover . | . . . Flight . | . . . Fastest Speed 50 | 50 160 240 Average Speed 191 | 153 178 240 Slowest Speed 320 | 160 240 320 Overloaded Moves . | . . . Propulsion Burnouts . | . . . Robots Hopped . | . . . Cave-ins Triggered . | . . . Exploration Rate (%) 44 | 4 84 45 Regions Visited 2 Branch Regions 1 Pre-discovered Areas . | . . . Known Exits Taken . | . . . Unknown Exits Taken 2 | 1 1 . Scrap Searched 1 | . . 1 Spaces Dug . | . . . Terrain Destroyed . | . . . Melee . | . . . Projectile . | . . . AOE . | . . . Terrain Rammed . | . . . Walls Destroyed . | . . . Machines Disabled . | . . . Actions | -11 -10 -10 --------- Run | Yrd Mat Min Total 852 | 64 566 222 Wait . | . . . Move 710 | 51 487 172 Hop . | . . . Pick Up 14 | 3 10 1 Fast Attach 12 | 6 5 1 Attach 10 | . 1 9 Detach 1 | . 1 . Swap 4 | . 4 . Drop 2 | . 2 . Fire 98 | 4 55 39 Melee . | . . . Ram . | . . . Kick . | . . . Crush 1 | . 1 . Escape Stasis . | . . . Rewire . | . . . Trap . | . . . Miscellaneous . | . . . Route ------- -11/Scrapyard -10/Materials (discovered 4 exits: [*Mat x2] / [*Min x2]) -10/Mines History --------- Turn | Location | Event 63 | -11/Scrapyard | Discovered new exit (range 15) 104 | -11/Scrapyard | Entered Materials 194 | -10/Materials | Discovered new exit (range 6) 314 | -10/Materials | Build established: Mutant 492 | -10/Materials | Discovered new exit (range 7) 887 | -10/Materials | Discovered new exit (range 16) 1089 | -10/Materials | Discovered new exit (range 10) 1166 | -10/Materials | Entered Mines 1224 | -10/Mines | Met a Derelict bent on vengeance 1400 | -10/Mines | Learned 2 Materials zone layouts 1435 | -10/Mines | Assembled infested the area 1440 | -10/Mines | Assisted by a Guerilla fighting off Assembled 1581 | -10/Mines | Core integrity fell below 50% 1632 | -10/Mines | Lost 3 parts (1p2w) 1693 | -10/Mines | Core integrity fell below 20% 1705 | -10/Mines | Destroyed by D-53 Grenadier with Mini Grenade Launcher Last Messages --------------- 01642_ Acquired Lgt. Treads. 01650_ as-41231 knocked back. 01653_ as-41231 destroyed. 01658_ Acquired 6 matter. 01663_ Acquired 52 matter. 01692_ U-05 Engineer lays Concrete. 01692_ Structural Scanner destroyed. 01692_ Lgt. Treads destroyed. 01693_ U-05 Engineer lays Concrete. 01694_ U-05 Engineer builds a Wall. 01697_ Lgt. Treads destroyed. 01697_ Lgt. Cannon destroyed. 01699_ U-05 Engineer lays Concrete. 01700_ The unstable cave ceiling collapses. 01700_ U-05 Engineer lays Concrete. 01701_ Propulsion Shielding destroyed. 01701_ U-05 Engineer builds a Wall. 01703_ Lgt. Treads destroyed. 01703_ Lgt. Nuclear Core destroyed. 01705_ The unstable cave ceiling collapses. Map ----- +----------------------------------------------------+ | ?????????????????????????????????????????????????? | | ?????????????????????????????????????????????????? | | ?????????????????????????????????????????????????? | | ?????????????????????????????????????????????????? | | ?????????????????????????????????????????????????? | | ?????????????????????????????????????????????????? | | ?????????????????????????????????????????????????? | | ????????????????????????????????#####????????????? | | ????????????????????????????????#####????????????? | | ????????????????????????????????# ????????????? | | ????????????????????????????????? ##????????????? | | ????????????????????????####????? ##????????????? | | ???????????????????????? ######## #####?????????? | | ???????????????????????? ###### ######????????? | | ?????????????????????????? # #####??????? | | ?????????????????????????? ####??????? | | ??????????????????????????## ##??????? | | ?????????????????????????### ??????????? | | ??????????????????????###### ????????????? | | ?????????????????????###### ##????????????? | | ?????????????????????### [%= ###????????????? | | ?????????????????###### %*%! ###?????????????? | | ??????????????? #### %= %####????????????? | | ??????????% ! # # !####### ## ####? | | ????????? r=u* %d %= < % %=###### ## ####? | | ?????????#### ! d% @ % % ! | | ?????????# # !%## # # ### % =%! %= | | ??????????## ?? # # #### ############### | | ???????????????? ?## ##### ############## | | ?????????????????????## ###### ###???????????? | | ??????????????????????############ ###???????????? | | ?????????????????????????##%%%%% ###???????????? | | ?????????????????????????## ##########???????????? | | ???????###???????????????## ####### #???????????? | | ???????###???## ????????###%###??????????????????? | | ??????? #???## ########## ####?????????????????? | | ???????? ????## ######### ####??#######???????? | | ??????## ##??## #### ### ?#######???????? | | ??????## ##??####### #### ### ## ##???????? | | ?? #### ##??####### #### *%| ##### ##???????? | | ?? ##### ##???????## #### ##### ##???????? | | ??## ##???????## ### ##### ##???????? | | #### ### ##???????## ##### ##???????? | | #### ### ##???????####### ##???????? | | ### ########?######## | ##???????? | | """ ## ########??????#### %= #### #####???????? | | """ ##???????#### #### #####???????? | | """ ####??????### #### ####????????? | | ####### ####??###### ### ####???????? | | ####### ########## ###???????? | +----------------------------------------------------+ Best States ------------- Heat Dissipation 25 Energy Generation 14 Energy Capacity 250 Matter Stores 300 Matter Capacity 300 Sight Range 16 Terrain Scan Density 10 Propulsion Shielding 33 Evasion (%) 40 Recoil Reduction 2 Item Schematics ----------------- None Robot Schematics ------------------ None Fabricated ------------ Nothing Alien Tech Used ----------------- None Achievements -------------- None Challenges ------------ None Game ------ Seed CobblerBombardmentReplicator Manual? 0 Play Time 00:14:58 Cumulative 166.4 hours Start 2024.05.07 @ 00:12:49 End 2024.05.08 @ 03:47:06 Sessions 1 Manual Loads 0 Difficulty Rogue Special Mode None Game No. 189 Rogue 189 Adventurer 0 Explorer 0 Win Type - Total 0 Types 0/0/0/0/0/0/0/0/0 Lore% 38 Gallery% 63 Achievement% 43 Wizard Run 0 Options --------- Layout 2 ASCII 0 Keyboard 1 Movement Vi Keybinds 0 Fullscreen 1 Font 24/Smallcaps Map View 50x44 Zoom Use 0% Tactical HUD 1 Map Filters NONE Filters NONE Steam 1 RUN: bab3ffb8-13ec-4272-a9cd-88926bb504bd